{"text_format":"3","workbook":"xlsx","n_sheets":1,"sheets":["Dnevnik trčanja"],"not_rendered":{"charts":2,"images":1,"defined_names":1},"read":"whole","date_system":"1900"}

{"sheet":"Dnevnik trčanja","index":0,"n_rows":32,"n_cols":5,"rows_kept":32,"merged":[[21,1,21,4]]}
[]
[]
[]
[]
[]
[]
[null," VAŠ"]
[null," SAŽETAK TRČANJA"]
[null," MJESEC","BROJ TRČANJA","UKUPNA UDALJENOST (milje)","CILJNA UDALJENOST (milje)"]
[null,"2012-01-01",{"$f":"IFERROR(SUMPRODUCT( (MONTH('Dnevnik trčanja'!$B$26:$B$32)=MONTH('Dnevnik trčanja'!$B10))*(YEAR('Dnevnik trčanja'!$B$26:$B$32)=YEAR('Dnevnik trčanja'!$B10)) ),\"Provjerite unos datuma\")","v":5},{"$f":"IFERROR(SUMPRODUCT( (MONTH('Dnevnik trčanja'!$B$26:$B$32)=MONTH('Dnevnik trčanja'!$B10))*(YEAR('Dnevnik trčanja'!$B$26:$B$32)=YEAR('Dnevnik trčanja'!$B10)),'Dnevnik trčanja'!$D$26:$D$32 ),\"Provjerite unos datuma\")","v":{"v":6.550000000000001,"d":"6.55"}},{"v":6,"d":"6.00"}]
[null,"2012-02-01",{"$f":"IFERROR(SUMPRODUCT( (MONTH('Dnevnik trčanja'!$B$26:$B$32)=MONTH('Dnevnik trčanja'!$B11))*(YEAR('Dnevnik trčanja'!$B$26:$B$32)=YEAR('Dnevnik trčanja'!$B11)) ),\"Provjerite unos datuma\")","v":2},{"$f":"IFERROR(SUMPRODUCT( (MONTH('Dnevnik trčanja'!$B$26:$B$32)=MONTH('Dnevnik trčanja'!$B11))*(YEAR('Dnevnik trčanja'!$B$26:$B$32)=YEAR('Dnevnik trčanja'!$B11)),'Dnevnik trčanja'!$D$26:$D$32 ),\"Provjerite unos datuma\")","v":{"v":2.2,"d":"2.20"}},{"v":5,"d":"5.00"}]
[null,"2012-03-01",{"$f":"IFERROR(SUMPRODUCT( (MONTH('Dnevnik trčanja'!$B$26:$B$32)=MONTH('Dnevnik trčanja'!$B12))*(YEAR('Dnevnik trčanja'!$B$26:$B$32)=YEAR('Dnevnik trčanja'!$B12)) ),\"Provjerite unos datuma\")","v":0},{"$f":"IFERROR(SUMPRODUCT( (MONTH('Dnevnik trčanja'!$B$26:$B$32)=MONTH('Dnevnik trčanja'!$B12))*(YEAR('Dnevnik trčanja'!$B$26:$B$32)=YEAR('Dnevnik trčanja'!$B12)),'Dnevnik trčanja'!$D$26:$D$32 ),\"Provjerite unos datuma\")","v":{"v":0,"d":"0.00"}},{"v":6,"d":"6.00"}]
[null,"2012-04-01",{"$f":"IFERROR(SUMPRODUCT( (MONTH('Dnevnik trčanja'!$B$26:$B$32)=MONTH('Dnevnik trčanja'!$B13))*(YEAR('Dnevnik trčanja'!$B$26:$B$32)=YEAR('Dnevnik trčanja'!$B13)) ),\"Provjerite unos datuma\")","v":0},{"$f":"IFERROR(SUMPRODUCT( (MONTH('Dnevnik trčanja'!$B$26:$B$32)=MONTH('Dnevnik trčanja'!$B13))*(YEAR('Dnevnik trčanja'!$B$26:$B$32)=YEAR('Dnevnik trčanja'!$B13)),'Dnevnik trčanja'!$D$26:$D$32 ),\"Provjerite unos datuma\")","v":{"v":0,"d":"0.00"}},{"v":7,"d":"7.00"}]
[null,"2012-05-01",{"$f":"IFERROR(SUMPRODUCT( (MONTH('Dnevnik trčanja'!$B$26:$B$32)=MONTH('Dnevnik trčanja'!$B14))*(YEAR('Dnevnik trčanja'!$B$26:$B$32)=YEAR('Dnevnik trčanja'!$B14)) ),\"Provjerite unos datuma\")","v":0},{"$f":"IFERROR(SUMPRODUCT( (MONTH('Dnevnik trčanja'!$B$26:$B$32)=MONTH('Dnevnik trčanja'!$B14))*(YEAR('Dnevnik trčanja'!$B$26:$B$32)=YEAR('Dnevnik trčanja'!$B14)),'Dnevnik trčanja'!$D$26:$D$32 ),\"Provjerite unos datuma\")","v":{"v":0,"d":"0.00"}},{"v":8,"d":"8.00"}]
[null,"2012-06-01",{"$f":"IFERROR(SUMPRODUCT( (MONTH('Dnevnik trčanja'!$B$26:$B$32)=MONTH('Dnevnik trčanja'!$B15))*(YEAR('Dnevnik trčanja'!$B$26:$B$32)=YEAR('Dnevnik trčanja'!$B15)) ),\"Provjerite unos datuma\")","v":0},{"$f":"IFERROR(SUMPRODUCT( (MONTH('Dnevnik trčanja'!$B$26:$B$32)=MONTH('Dnevnik trčanja'!$B15))*(YEAR('Dnevnik trčanja'!$B$26:$B$32)=YEAR('Dnevnik trčanja'!$B15)),'Dnevnik trčanja'!$D$26:$D$32 ),\"Provjerite unos datuma\")","v":{"v":0,"d":"0.00"}},{"v":8,"d":"8.00"}]
[null,"2012-07-01",{"$f":"IFERROR(SUMPRODUCT( (MONTH('Dnevnik trčanja'!$B$26:$B$32)=MONTH('Dnevnik trčanja'!$B16))*(YEAR('Dnevnik trčanja'!$B$26:$B$32)=YEAR('Dnevnik trčanja'!$B16)) ),\"Provjerite unos datuma\")","v":0},{"$f":"IFERROR(SUMPRODUCT( (MONTH('Dnevnik trčanja'!$B$26:$B$32)=MONTH('Dnevnik trčanja'!$B16))*(YEAR('Dnevnik trčanja'!$B$26:$B$32)=YEAR('Dnevnik trčanja'!$B16)),'Dnevnik trčanja'!$D$26:$D$32 ),\"Provjerite unos datuma\")","v":{"v":0,"d":"0.00"}},{"v":9,"d":"9.00"}]
[null,"2012-08-01",{"$f":"IFERROR(SUMPRODUCT( (MONTH('Dnevnik trčanja'!$B$26:$B$32)=MONTH('Dnevnik trčanja'!$B17))*(YEAR('Dnevnik trčanja'!$B$26:$B$32)=YEAR('Dnevnik trčanja'!$B17)) ),\"Provjerite unos datuma\")","v":0},{"$f":"IFERROR(SUMPRODUCT( (MONTH('Dnevnik trčanja'!$B$26:$B$32)=MONTH('Dnevnik trčanja'!$B17))*(YEAR('Dnevnik trčanja'!$B$26:$B$32)=YEAR('Dnevnik trčanja'!$B17)),'Dnevnik trčanja'!$D$26:$D$32 ),\"Provjerite unos datuma\")","v":{"v":0,"d":"0.00"}},{"v":9,"d":"9.00"}]
[null,"2012-09-01",{"$f":"IFERROR(SUMPRODUCT( (MONTH('Dnevnik trčanja'!$B$26:$B$32)=MONTH('Dnevnik trčanja'!$B18))*(YEAR('Dnevnik trčanja'!$B$26:$B$32)=YEAR('Dnevnik trčanja'!$B18)) ),\"Provjerite unos datuma\")","v":0},{"$f":"IFERROR(SUMPRODUCT( (MONTH('Dnevnik trčanja'!$B$26:$B$32)=MONTH('Dnevnik trčanja'!$B18))*(YEAR('Dnevnik trčanja'!$B$26:$B$32)=YEAR('Dnevnik trčanja'!$B18)),'Dnevnik trčanja'!$D$26:$D$32 ),\"Provjerite unos datuma\")","v":{"v":0,"d":"0.00"}},{"v":9.5,"d":"9.50"}]
[null,"2012-10-01",{"$f":"IFERROR(SUMPRODUCT( (MONTH('Dnevnik trčanja'!$B$26:$B$32)=MONTH('Dnevnik trčanja'!$B19))*(YEAR('Dnevnik trčanja'!$B$26:$B$32)=YEAR('Dnevnik trčanja'!$B19)) ),\"Provjerite unos datuma\")","v":0},{"$f":"IFERROR(SUMPRODUCT( (MONTH('Dnevnik trčanja'!$B$26:$B$32)=MONTH('Dnevnik trčanja'!$B19))*(YEAR('Dnevnik trčanja'!$B$26:$B$32)=YEAR('Dnevnik trčanja'!$B19)),'Dnevnik trčanja'!$D$26:$D$32 ),\"Provjerite unos datuma\")","v":{"v":0,"d":"0.00"}},{"v":10,"d":"10.00"}]
[null,"2012-11-01",{"$f":"IFERROR(SUMPRODUCT( (MONTH('Dnevnik trčanja'!$B$26:$B$32)=MONTH('Dnevnik trčanja'!$B20))*(YEAR('Dnevnik trčanja'!$B$26:$B$32)=YEAR('Dnevnik trčanja'!$B20)) ),\"Provjerite unos datuma\")","v":0},{"$f":"IFERROR(SUMPRODUCT( (MONTH('Dnevnik trčanja'!$B$26:$B$32)=MONTH('Dnevnik trčanja'!$B20))*(YEAR('Dnevnik trčanja'!$B$26:$B$32)=YEAR('Dnevnik trčanja'!$B20)),'Dnevnik trčanja'!$D$26:$D$32 ),\"Provjerite unos datuma\")","v":{"v":0,"d":"0.00"}},{"v":10,"d":"10.00"}]
[null,"2012-12-01",{"$f":"IFERROR(SUMPRODUCT( (MONTH('Dnevnik trčanja'!$B$26:$B$32)=MONTH('Dnevnik trčanja'!$B21))*(YEAR('Dnevnik trčanja'!$B$26:$B$32)=YEAR('Dnevnik trčanja'!$B21)) ),\"Provjerite unos datuma\")","v":0},{"$f":"IFERROR(SUMPRODUCT( (MONTH('Dnevnik trčanja'!$B$26:$B$32)=MONTH('Dnevnik trčanja'!$B21))*(YEAR('Dnevnik trčanja'!$B$26:$B$32)=YEAR('Dnevnik trčanja'!$B21)),'Dnevnik trčanja'!$D$26:$D$32 ),\"Provjerite unos datuma\")","v":{"v":0,"d":"0.00"}},{"v":11,"d":"11.00"}]
[]
[null," VAŠ"]
[null," DNEVNIK TRČANJA"]
[null,"PODACI","VRIJEME","UDALJENOST (milje)","TEMPO (minute)"]
[null,"2012-01-01",0.006944444444444444,{"v":1.2,"d":"1.20"},{"$f":"IFERROR(MINUTE('Dnevnik trčanja'!$C26)/'Dnevnik trčanja'!$D26,0)","v":{"v":8.333333333333334,"d":"8.33"}}]
[null,"2012-01-03",0.008333333333333333,1.35,{"$f":"IFERROR(MINUTE('Dnevnik trčanja'!$C27)/'Dnevnik trčanja'!$D27,0)","v":{"v":8.888888888888888,"d":"8.89"}}]
[null,"2012-01-05",0.010069444444444445,1.45,{"$f":"IFERROR(MINUTE('Dnevnik trčanja'!$C28)/'Dnevnik trčanja'!$D28,0)","v":{"v":9.655172413793103,"d":"9.66"}}]
[null,"2012-01-08",0.009027777777777779,1.45,{"$f":"IFERROR(MINUTE('Dnevnik trčanja'!$C29)/'Dnevnik trčanja'!$D29,0)","v":{"v":8.965517241379311,"d":"8.97"}}]
[null,"2012-01-09",0.007175925925925926,{"v":1.1,"d":"1.10"},{"$f":"IFERROR(MINUTE('Dnevnik trčanja'!$C30)/'Dnevnik trčanja'!$D30,0)","v":{"v":9.09090909090909,"d":"9.09"}}]
[null,"2012-02-01",0.006319444444444444,{"v":1.1,"d":"1.10"},{"$f":"IFERROR(MINUTE('Dnevnik trčanja'!$C31)/'Dnevnik trčanja'!$D31,0)","v":{"v":8.181818181818182,"d":"8.18"}}]
[null,"2012-02-03",0.005555555555555556,{"v":1.1,"d":"1.10"},{"$f":"IFERROR(MINUTE('Dnevnik trčanja'!$C32)/'Dnevnik trčanja'!$D32,0)","v":{"v":7.2727272727272725,"d":"7.27"}}]